[Event "Titled Tuesday Blitz February 07 Late 2023"]
[White "Yuan, Qingyu"]
[Black "reevecanada"]
[WhiteFideId "8609772"]
[WhiteElo "2373"]
[BlackElo "2474"]
[Result "1/2-1/2"]
[Round "01"]
[TimeControl "180+2"]
[Date "2023.02.07"]
[WhiteClock "0:00:05"]
[BlackClock "0:00:46"]

1. e4 {[%clk 0:03:00]}  c5 {[%clk 0:02:59]} 2. Nf3 {[%clk 0:02:59]}  d6 {[%clk 0:02:58]} 3. Bb5+ {[%clk 0:03:00]}  Bd7 {[%clk 0:02:57]} 4. Bxd7+ {[%clk 0:03:00]}  Nxd7 {[%clk 0:02:58]} 5. O-O {[%clk 0:02:59]}  Ngf6 {[%clk 0:02:55]} 6. Qe2 {[%clk 0:03:00]}  g6 {[%clk 0:02:55]} 7. c3 {[%clk 0:02:58]}  Bg7 {[%clk 0:02:55]} 8. d4 {[%clk 0:02:59]}  O-O {[%clk 0:02:56]} 9. Rd1 {[%clk 0:02:59]}  cxd4 {[%clk 0:02:55]} 10. cxd4 {[%clk 0:02:59]}  Rc8 {[%clk 0:02:56]} 11. Nc3 {[%clk 0:02:47]}  e6 {[%clk 0:02:55]} 12. Bf4 {[%clk 0:02:39]}  Nb6 {[%clk 0:02:51]} 13. Nb5 {[%clk 0:02:20]}  d5 {[%clk 0:02:49]} 14. e5 {[%clk 0:02:16]}  Ne4 {[%clk 0:02:46]} 15. Nxa7 {[%clk 0:02:12]}  Ra8 {[%clk 0:02:46]} 16. Nb5 {[%clk 0:02:12]}  Qd7 {[%clk 0:02:45]} 17. Nd6 {[%clk 0:01:59]}  Nxd6 {[%clk 0:02:44]} 18. exd6 {[%clk 0:02:00]}  Rfc8 {[%clk 0:02:39]} 19. b3 {[%clk 0:01:55]}  f6 {[%clk 0:02:36]} 20. Rac1 {[%clk 0:01:52]}  Bf8 {[%clk 0:02:33]} 21. Rc7 {[%clk 0:01:47]}  Rxc7 {[%clk 0:02:32]} 22. dxc7 {[%clk 0:01:48]}  Bd6 {[%clk 0:02:32]} 23. Bxd6 {[%clk 0:01:42]}  Qxd6 {[%clk 0:02:33]} 24. Rc1 {[%clk 0:01:43]}  Rc8 {[%clk 0:02:30]} 25. h4 {[%clk 0:01:34]}  Kf7 {[%clk 0:02:23]} 26. Qb5 {[%clk 0:01:12]}  Rxc7 {[%clk 0:02:22]} 27. Rc5 {[%clk 0:01:08]}  Nd7 {[%clk 0:02:20]} 28. Rxc7 {[%clk 0:01:04]}  Qxc7 {[%clk 0:02:21]} 29. g3 {[%clk 0:01:01]}  h6 {[%clk 0:02:19]} 30. Kg2 {[%clk 0:00:58]}  Qc6 {[%clk 0:02:15]} 31. Qa5 {[%clk 0:00:57]}  e5 {[%clk 0:02:12]} 32. dxe5 {[%clk 0:00:47]}  fxe5 {[%clk 0:02:13]} 33. Qd8 {[%clk 0:00:45]}  e4 {[%clk 0:01:55]} 34. Nd4 {[%clk 0:00:42]}  Qd6 {[%clk 0:01:51]} 35. Qh8 {[%clk 0:00:32]}  Qf8 {[%clk 0:01:45]} 36. Qh7+ {[%clk 0:00:25]}  Qg7 {[%clk 0:01:43]} 37. Qxg7+ {[%clk 0:00:25]}  Kxg7 {[%clk 0:01:44]} 38. Kf1 {[%clk 0:00:20]}  Kf6 {[%clk 0:01:44]} 39. Ke2 {[%clk 0:00:20]}  Ke5 {[%clk 0:01:45]} 40. Ke3 {[%clk 0:00:20]}  Nf6 {[%clk 0:01:34]} 41. f3 {[%clk 0:00:20]}  exf3 {[%clk 0:01:30]} 42. Nxf3+ {[%clk 0:00:20]}  Kf5 {[%clk 0:01:31]} 43. Nh2 {[%clk 0:00:15]}  Ke5 {[%clk 0:01:18]} 44. Nf3+ {[%clk 0:00:15]}  Kf5 {[%clk 0:01:17]} 45. Nh2 {[%clk 0:00:15]}  Ke5 {[%clk 0:01:16]} 46. a4 {[%clk 0:00:16]}  Ne4 {[%clk 0:01:08]} 47. Ng4+ {[%clk 0:00:15]}  Kd6 {[%clk 0:01:06]} 48. Nxh6 {[%clk 0:00:13]}  Nxg3 {[%clk 0:01:06]} 49. b4 {[%clk 0:00:12]}  Ke5 {[%clk 0:01:05]} 50. a5 {[%clk 0:00:08]}  d4+ {[%clk 0:01:04]} 51. Kd3 {[%clk 0:00:08]}  Kd5 {[%clk 0:00:57]} 52. Ng4 {[%clk 0:00:08]}  Nh5 {[%clk 0:00:56]} 53. b5 {[%clk 0:00:07]}  Nf4+ {[%clk 0:00:56]} 54. Kd2 {[%clk 0:00:07]}  Kc5 {[%clk 0:00:56]} 55. a6 {[%clk 0:00:07]}  bxa6 {[%clk 0:00:56]} 56. bxa6 {[%clk 0:00:08]}  Kb6 {[%clk 0:00:57]} 57. Ne5 {[%clk 0:00:04]}  Kxa6 {[%clk 0:00:56]} 58. Nf3 {[%clk 0:00:04]}  d3 {[%clk 0:00:51]} 59. Ke3 {[%clk 0:00:04]}  Ng2+ {[%clk 0:00:48]} 60. Kxd3 {[%clk 0:00:04]}  Kb5 {[%clk 0:00:48]} 61. Ke4 {[%clk 0:00:04]}  Kc5 {[%clk 0:00:49]} 62. Ke5 {[%clk 0:00:04]}  Kc4 {[%clk 0:00:49]} 63. Kf6 {[%clk 0:00:05]}  Kd3 {[%clk 0:00:49]} 64. Kxg6 {[%clk 0:00:05]}  Nxh4+ {[%clk 0:00:46]} 1/2-1/2


[Site "https://www.chess.com"]

[Event "Titled Tuesday Blitz February 07 Late 2023"]
[White "Rustemov, Alexander"]
[Black "Flynn, Jacob"]
[WhiteFideId "4119002"]
[BlackFideId "2509393"]
[WhiteElo "2525"]
[BlackElo "2102"]
[Result "1-0"]
[Round "01"]
[TimeControl "180+2"]
[Date "2023.02.07"]
[WhiteClock "0:01:02"]
[BlackClock "0:00:10"]

1. d4 {[%clk 0:03:00]}  Nf6 {[%clk 0:02:57]} 2. c4 {[%clk 0:03:01]}  e6 {[%clk 0:02:57]} 3. Nf3 {[%clk 0:03:02]}  d5 {[%clk 0:02:57]} 4. Nc3 {[%clk 0:03:02]}  c6 {[%clk 0:02:57]} 5. e3 {[%clk 0:03:01]}  Nbd7 {[%clk 0:02:57]} 6. Qc2 {[%clk 0:03:02]}  Bd6 {[%clk 0:02:56]} 7. b3 {[%clk 0:03:02]}  O-O {[%clk 0:02:53]} 8. Be2 {[%clk 0:03:03]}  b6 {[%clk 0:02:52]} 9. O-O {[%clk 0:03:03]}  Bb7 {[%clk 0:02:53]} 10. Bb2 {[%clk 0:03:03]}  Qe7 {[%clk 0:02:51]} 11. Rad1 {[%clk 0:03:04]}  Rad8 {[%clk 0:02:51]} 12. Rfe1 {[%clk 0:03:04]}  Rfe8 {[%clk 0:02:50]} 13. g3 {[%clk 0:03:05]}  c5 {[%clk 0:02:32]} 14. cxd5 {[%clk 0:03:04]}  Nxd5 {[%clk 0:02:31]} 15. Nxd5 {[%clk 0:03:04]}  exd5 {[%clk 0:02:27]} 16. dxc5 {[%clk 0:02:55]}  bxc5 {[%clk 0:02:28]} 17. Bf1 {[%clk 0:02:54]}  Nf6 {[%clk 0:02:18]} 18. Bg2 {[%clk 0:02:53]}  Rc8 {[%clk 0:02:08]} 19. Nh4 {[%clk 0:02:48]}  g6 {[%clk 0:02:01]} 20. Bxf6 {[%clk 0:02:46]}  Qxf6 {[%clk 0:02:01]} 21. Bxd5 {[%clk 0:02:47]}  Ba6 {[%clk 0:01:52]} 22. Bc4 {[%clk 0:02:37]}  Bb7 {[%clk 0:01:52]} 23. e4 {[%clk 0:02:28]}  Be5 {[%clk 0:01:50]} 24. Kg2 {[%clk 0:02:17]}  Bd4 {[%clk 0:01:50]} 25. Nf3 {[%clk 0:02:12]}  Kg7 {[%clk 0:01:35]} 26. Nxd4 {[%clk 0:02:11]}  cxd4 {[%clk 0:01:36]} 27. f3 {[%clk 0:02:05]}  Ba6 {[%clk 0:01:27]} 28. Qd3 {[%clk 0:02:00]}  Bxc4 {[%clk 0:01:27]} 29. bxc4 {[%clk 0:02:01]}  Red8 {[%clk 0:01:27]} 30. Rc1 {[%clk 0:01:58]}  Qa6 {[%clk 0:01:25]} 31. Rc2 {[%clk 0:01:56]}  h5 {[%clk 0:01:23]} 32. h4 {[%clk 0:01:55]}  Rc5 {[%clk 0:01:19]} 33. e5 {[%clk 0:01:49]}  Qe6 {[%clk 0:01:15]} 34. f4 {[%clk 0:01:45]}  Rdc8 {[%clk 0:01:10]} 35. Rec1 {[%clk 0:01:44]}  Qc6+ {[%clk 0:01:08]} 36. Kf2 {[%clk 0:01:41]}  Rd8 {[%clk 0:01:07]} 37. Rd1 {[%clk 0:01:34]}  a5 {[%clk 0:01:04]} 38. Qf3 {[%clk 0:01:28]}  Qa4 {[%clk 0:00:58]} 39. Qb3 {[%clk 0:01:22]}  Qc6 {[%clk 0:00:56]} 40. Rdd2 {[%clk 0:01:22]}  Qh1 {[%clk 0:00:47]} 41. Qf3 {[%clk 0:01:22]}  Qa1 {[%clk 0:00:42]} 42. Rd1 {[%clk 0:01:18]}  d3 {[%clk 0:00:37]} 43. Rxa1 {[%clk 0:01:16]}  dxc2 {[%clk 0:00:37]} 44. Qc3 {[%clk 0:01:16]}  Rd1 {[%clk 0:00:36]} 45. Ke2 {[%clk 0:01:11]}  Rxa1 {[%clk 0:00:17]} 46. Qxa1 {[%clk 0:01:11]}  Rxc4 {[%clk 0:00:17]} 47. Qc1 {[%clk 0:01:09]}  g5 {[%clk 0:00:12]} 48. Kd3 {[%clk 0:01:05]}  Rc8 {[%clk 0:00:11]} 49. f5 {[%clk 0:01:01]}  gxh4 {[%clk 0:00:10]} 50. gxh4 {[%clk 0:01:01]}  Rd8+ {[%clk 0:00:09]} 51. Kxc2 {[%clk 0:00:59]}  Rc8+ {[%clk 0:00:10]} 52. Kd2 {[%clk 0:01:00]}  Rxc1 {[%clk 0:00:10]} 53. Kxc1 {[%clk 0:01:01]}  Kf8 {[%clk 0:00:09]} 54. Kd2 {[%clk 0:01:01]}  Ke7 {[%clk 0:00:10]} 55. Ke3 {[%clk 0:01:02]} 1-0


[Site "https://www.chess.com"]

[Event "Titled Tuesday Blitz February 07 Late 2023"]
[White "Pichot, Alan"]
[Black "Dudzinski, Pawel"]
[WhiteFideId "110973"]
[BlackFideId "1117890"]
[WhiteElo "2638"]
[BlackElo "2186"]
[Result "1-0"]
[Round "01"]
[TimeControl "180+2"]
[Date "2023.02.07"]
[WhiteClock "0:01:26"]
[BlackClock "0:00:03"]

1. Nf3 {[%clk 0:02:58]}  g6 {[%clk 0:02:59]} 2. c4 {[%clk 0:02:57]}  Bg7 {[%clk 0:02:59]} 3. Nc3 {[%clk 0:02:57]}  e5 {[%clk 0:02:59]} 4. g3 {[%clk 0:02:57]}  c5 {[%clk 0:02:56]} 5. Bg2 {[%clk 0:02:57]}  Nc6 {[%clk 0:02:56]} 6. O-O {[%clk 0:02:54]}  Nge7 {[%clk 0:02:57]} 7. d3 {[%clk 0:02:54]}  O-O {[%clk 0:02:55]} 8. Ne1 {[%clk 0:02:54]}  a6 {[%clk 0:02:54]} 9. Nc2 {[%clk 0:02:54]}  b5 {[%clk 0:02:54]} 10. Ne3 {[%clk 0:02:50]}  f5 {[%clk 0:02:48]} 11. Ned5 {[%clk 0:02:48]}  Rb8 {[%clk 0:02:46]} 12. Rb1 {[%clk 0:02:38]}  b4 {[%clk 0:02:45]} 13. Na4 {[%clk 0:02:37]}  d6 {[%clk 0:02:43]} 14. b3 {[%clk 0:02:36]}  Bb7 {[%clk 0:02:17]} 15. Nab6 {[%clk 0:02:27]}  Nxd5 {[%clk 0:02:13]} 16. Nxd5 {[%clk 0:02:27]}  Ne7 {[%clk 0:02:13]} 17. Bg5 {[%clk 0:02:26]}  Bxd5 {[%clk 0:02:10]} 18. Bxd5+ {[%clk 0:02:27]}  Kh8 {[%clk 0:02:11]} 19. Bg2 {[%clk 0:02:27]}  h6 {[%clk 0:02:08]} 20. Bd2 {[%clk 0:02:26]}  f4 {[%clk 0:01:57]} 21. a3 {[%clk 0:02:25]}  a5 {[%clk 0:01:55]} 22. axb4 {[%clk 0:02:25]}  axb4 {[%clk 0:01:56]} 23. Ra1 {[%clk 0:02:24]}  fxg3 {[%clk 0:01:42]} 24. hxg3 {[%clk 0:02:24]}  e4 {[%clk 0:01:41]} 25. Bxe4 {[%clk 0:02:21]}  Bxa1 {[%clk 0:01:39]} 26. Qxa1+ {[%clk 0:02:22]}  Kh7 {[%clk 0:01:35]} 27. Bxh6 {[%clk 0:02:15]}  Kxh6 {[%clk 0:01:26]} 28. Kg2 {[%clk 0:02:15]}  Kh7 {[%clk 0:00:57]} 29. Rh1+ {[%clk 0:02:14]}  Kg8 {[%clk 0:00:58]} 30. Rh8+ {[%clk 0:02:02]}  Kf7 {[%clk 0:00:58]} 31. Rh7+ {[%clk 0:02:02]}  Ke8 {[%clk 0:00:57]} 32. Bxg6+ {[%clk 0:01:31]}  Kd7 {[%clk 0:00:41]} 33. Be4 {[%clk 0:01:31]}  Ke6 {[%clk 0:00:11]} 34. Qg7 {[%clk 0:01:29]}  Rf6 {[%clk 0:00:08]} 35. Qg4+ {[%clk 0:01:27]}  Nf5 {[%clk 0:00:05]} 36. Bxf5+ {[%clk 0:01:27]}  Rxf5 {[%clk 0:00:05]} 37. e4 {[%clk 0:01:27]}  Qf6 {[%clk 0:00:04]} 38. exf5+ {[%clk 0:01:27]}  Qxf5 {[%clk 0:00:02]} 39. Rh6+ {[%clk 0:01:27]}  Ke5 {[%clk 0:00:02]} 40. Rh5 {[%clk 0:01:28]}  Rf8 {[%clk 0:00:03]} 41. Qf4+ {[%clk 0:01:26]} 1-0


[Site "https://www.chess.com"]

[Event "Titled Tuesday Blitz February 07 Late 2023"]
[White "Stoyanov, Tsvetan"]
[Black "Huber, Benedikt"]
[WhiteFideId "2917173"]
[BlackFideId "12923583"]
[WhiteElo "2454"]
[BlackElo "2272"]
[Result "1-0"]
[Round "01"]
[TimeControl "180+2"]
[Date "2023.02.07"]
[WhiteClock "0:00:56"]
[BlackClock "0:01:43"]

1. e4 {[%clk 0:03:00]}  c5 {[%clk 0:02:42]} 2. Nf3 {[%clk 0:02:59]}  e6 {[%clk 0:02:42]} 3. d3 {[%clk 0:02:57]}  Nc6 {[%clk 0:02:42]} 4. Nbd2 {[%clk 0:02:58]}  d5 {[%clk 0:02:42]} 5. g3 {[%clk 0:02:59]}  Nf6 {[%clk 0:02:43]} 6. Bg2 {[%clk 0:02:59]}  Be7 {[%clk 0:02:43]} 7. O-O {[%clk 0:02:59]}  Qc7 {[%clk 0:02:43]} 8. Re1 {[%clk 0:03:00]}  O-O {[%clk 0:02:44]} 9. c3 {[%clk 0:02:59]}  dxe4 {[%clk 0:02:41]} 10. dxe4 {[%clk 0:02:56]}  Rd8 {[%clk 0:02:42]} 11. Qc2 {[%clk 0:02:57]}  b5 {[%clk 0:02:41]} 12. a4 {[%clk 0:02:52]}  b4 {[%clk 0:02:37]} 13. e5 {[%clk 0:02:51]}  Nd5 {[%clk 0:02:35]} 14. c4 {[%clk 0:02:48]}  Nb6 {[%clk 0:02:34]} 15. Ne4 {[%clk 0:02:20]}  Bb7 {[%clk 0:02:28]} 16. a5 {[%clk 0:02:18]}  Nd7 {[%clk 0:02:26]} 17. a6 {[%clk 0:02:18]}  Bc8 {[%clk 0:02:24]} 18. Nfg5 {[%clk 0:01:59]}  Nf8 {[%clk 0:02:22]} 19. Nd6 {[%clk 0:01:52]}  Bxd6 {[%clk 0:02:12]} 20. exd6 {[%clk 0:01:52]}  Qxd6 {[%clk 0:02:13]} 21. Bf4 {[%clk 0:01:51]}  e5 {[%clk 0:02:12]} 22. Rad1 {[%clk 0:01:21]}  Nd4 {[%clk 0:02:04]} 23. Rxd4 {[%clk 0:01:20]}  Qxd4 {[%clk 0:01:59]} 24. Bxe5 {[%clk 0:01:17]}  Qd2 {[%clk 0:01:59]} 25. Qxd2 {[%clk 0:01:15]}  Rxd2 {[%clk 0:02:00]} 26. Bxa8 {[%clk 0:01:15]}  f6 {[%clk 0:02:00]} 27. Bf4 {[%clk 0:01:10]}  Rd8 {[%clk 0:01:56]} 28. Bc7 {[%clk 0:00:58]}  Rd7 {[%clk 0:01:50]} 29. Bd5+ {[%clk 0:00:57]}  Rxd5 {[%clk 0:01:43]} 30. cxd5 {[%clk 0:00:57]}  fxg5 {[%clk 0:01:44]} 31. Re8 {[%clk 0:00:57]}  Bxa6 {[%clk 0:01:43]} 32. Bd6 {[%clk 0:00:56]} 1-0


[Site "https://www.chess.com"]

[Event "Titled Tuesday Blitz February 07 Late 2023"]
[White "Mesa Cruz, Juan Carlos"]
[Black "Yanchenko, Roman"]
[WhiteFideId "6423400"]
[BlackFideId "4137329"]
[WhiteElo "2122"]
[BlackElo "2466"]
[Result "0-1"]
[Round "01"]
[TimeControl "180+2"]
[Date "2023.02.07"]
[WhiteClock "0:01:35"]
[BlackClock "0:01:28"]

1. e4 {[%clk 0:02:54]}  e6 {[%clk 0:03:00]} 2. Qe2 {[%clk 0:02:54]}  d5 {[%clk 0:03:01]} 3. exd5 {[%clk 0:02:54]}  Qxd5 {[%clk 0:03:01]} 4. Nc3 {[%clk 0:02:55]}  Qa5 {[%clk 0:03:01]} 5. Nf3 {[%clk 0:02:55]}  Nf6 {[%clk 0:03:01]} 6. g3 {[%clk 0:02:55]}  Bb4 {[%clk 0:03:00]} 7. Bg2 {[%clk 0:02:55]}  O-O {[%clk 0:03:00]} 8. O-O {[%clk 0:02:55]}  Nbd7 {[%clk 0:03:00]} 9. a3 {[%clk 0:02:56]}  Bxc3 {[%clk 0:03:00]} 10. bxc3 {[%clk 0:02:52]}  c5 {[%clk 0:03:00]} 11. c4 {[%clk 0:02:51]}  Rd8 {[%clk 0:02:55]} 12. d3 {[%clk 0:02:51]}  h6 {[%clk 0:02:54]} 13. Bd2 {[%clk 0:02:51]}  Qa4 {[%clk 0:02:52]} 14. Bc3 {[%clk 0:02:51]}  Rb8 {[%clk 0:02:51]} 15. Ne5 {[%clk 0:02:45]}  Nf8 {[%clk 0:02:19]} 16. Rfe1 {[%clk 0:02:38]}  Bd7 {[%clk 0:02:14]} 17. Ra2 {[%clk 0:02:21]}  Be8 {[%clk 0:01:55]} 18. Qe3 {[%clk 0:02:19]}  b6 {[%clk 0:01:50]} 19. Nf3 {[%clk 0:02:12]}  N8d7 {[%clk 0:01:43]} 20. Ne5 {[%clk 0:02:04]}  Nxe5 {[%clk 0:01:43]} 21. Qxe5 {[%clk 0:02:01]}  Bc6 {[%clk 0:01:41]} 22. Qf4 {[%clk 0:01:57]}  Ne8 {[%clk 0:01:40]} 23. Bh3 {[%clk 0:01:54]}  Ba8 {[%clk 0:01:33]} 24. Rxe6 {[%clk 0:01:44]}  Qd7 {[%clk 0:01:29]} 25. Rf6 {[%clk 0:01:35]}  Qxh3 {[%clk 0:01:28]} 0-1


[Site "https://www.chess.com"]

[Event "Titled Tuesday Blitz February 07 Late 2023"]
[White "Riehle, Marco"]
[Black "Fernandez Garcia, Gumersindo"]
[WhiteFideId "12904392"]
[BlackFideId "24516740"]
[WhiteElo "2368"]
[BlackElo "2160"]
[Result "1-0"]
[Round "01"]
[TimeControl "180+2"]
[Date "2023.02.07"]
[WhiteClock "0:01:41"]
[BlackClock "0:00:14"]

1. e4 {[%clk 0:02:58]}  c5 {[%clk 0:02:48]} 2. a3 {[%clk 0:02:58]}  g6 {[%clk 0:02:47]} 3. h4 {[%clk 0:02:57]}  h5 {[%clk 0:02:42]} 4. Nc3 {[%clk 0:02:57]}  Bg7 {[%clk 0:02:42]} 5. Bc4 {[%clk 0:02:57]}  Nc6 {[%clk 0:02:39]} 6. d3 {[%clk 0:02:56]}  d6 {[%clk 0:02:39]} 7. Nf3 {[%clk 0:02:56]}  e6 {[%clk 0:02:36]} 8. Bg5 {[%clk 0:02:55]}  Nge7 {[%clk 0:02:36]} 9. Qd2 {[%clk 0:02:54]}  a6 {[%clk 0:02:34]} 10. O-O-O {[%clk 0:02:54]}  b5 {[%clk 0:02:34]} 11. Bb3 {[%clk 0:02:54]}  b4 {[%clk 0:02:33]} 12. axb4 {[%clk 0:02:54]}  cxb4 {[%clk 0:02:30]} 13. Na4 {[%clk 0:02:50]}  Bd7 {[%clk 0:02:23]} 14. d4 {[%clk 0:02:49]}  Qa5 {[%clk 0:02:18]} 15. Kb1 {[%clk 0:02:46]}  Na7 {[%clk 0:02:05]} 16. Bxe7 {[%clk 0:02:44]}  Kxe7 {[%clk 0:02:05]} 17. Qg5+ {[%clk 0:02:42]}  Qxg5 {[%clk 0:01:58]} 18. hxg5 {[%clk 0:02:41]}  Rab8 {[%clk 0:01:53]} 19. e5 {[%clk 0:02:38]}  Nb5 {[%clk 0:01:41]} 20. exd6+ {[%clk 0:02:33]}  Nxd6 {[%clk 0:01:41]} 21. Nc5 {[%clk 0:02:30]}  Bb5 {[%clk 0:01:36]} 22. Ne5 {[%clk 0:02:22]}  Rhc8 {[%clk 0:01:29]} 23. Rhe1 {[%clk 0:02:14]}  a5 {[%clk 0:01:26]} 24. Nxg6+ {[%clk 0:02:09]}  Kd8 {[%clk 0:00:53]} 25. Ne5 {[%clk 0:02:02]}  Ra8 {[%clk 0:00:44]} 26. Nxf7+ {[%clk 0:01:53]}  Nxf7 {[%clk 0:00:36]} 27. Nxe6+ {[%clk 0:01:53]}  Kd7 {[%clk 0:00:33]} 28. Nxg7 {[%clk 0:01:54]}  Nxg5 {[%clk 0:00:29]} 29. f4 {[%clk 0:01:52]}  a4 {[%clk 0:00:17]} 30. Bd5 {[%clk 0:01:51]}  Bc6 {[%clk 0:00:16]} 31. Bxc6+ {[%clk 0:01:51]}  Rxc6 {[%clk 0:00:17]} 32. fxg5 {[%clk 0:01:51]}  a3 {[%clk 0:00:17]} 33. Re2 {[%clk 0:01:43]}  axb2 {[%clk 0:00:16]} 34. Kxb2 {[%clk 0:01:43]}  Rg6 {[%clk 0:00:14]} 35. Nxh5 {[%clk 0:01:41]}  Rxg5 {[%clk 0:00:15]} 36. Nf6+ {[%clk 0:01:41]}  Kd6 {[%clk 0:00:14]} 37. Ne4+ {[%clk 0:01:41]} 1-0


[Site "https://www.chess.com"]

[Event "Titled Tuesday Blitz February 07 Late 2023"]
[White "Dzierzak, Radoslaw"]
[Black "Avila Pavas, Santiago"]
[WhiteFideId "1161407"]
[BlackFideId "4437128"]
[WhiteElo "2220"]
[BlackElo "2522"]
[Result "0-1"]
[Round "01"]
[TimeControl "180+2"]
[Date "2023.02.07"]
[WhiteClock "0:00:46"]
[BlackClock "0:01:43"]

1. e4 {[%clk 0:03:00]}  Nf6 {[%clk 0:03:00]} 2. e5 {[%clk 0:03:00]}  Nd5 {[%clk 0:03:01]} 3. d4 {[%clk 0:03:00]}  d6 {[%clk 0:03:01]} 4. exd6 {[%clk 0:02:59]}  cxd6 {[%clk 0:03:02]} 5. h3 {[%clk 0:02:53]}  g6 {[%clk 0:03:02]} 6. Nf3 {[%clk 0:02:53]}  Bg7 {[%clk 0:03:02]} 7. c4 {[%clk 0:02:53]}  Nb6 {[%clk 0:03:02]} 8. Be2 {[%clk 0:02:52]}  O-O {[%clk 0:03:02]} 9. O-O {[%clk 0:02:52]}  Bf5 {[%clk 0:03:02]} 10. Nc3 {[%clk 0:02:47]}  Nc6 {[%clk 0:03:03]} 11. a3 {[%clk 0:02:45]}  d5 {[%clk 0:02:40]} 12. c5 {[%clk 0:02:44]}  Nc8 {[%clk 0:02:40]} 13. b4 {[%clk 0:02:43]}  Be4 {[%clk 0:02:40]} 14. Be3 {[%clk 0:02:40]}  Bxf3 {[%clk 0:02:38]} 15. Bxf3 {[%clk 0:02:40]}  e6 {[%clk 0:02:38]} 16. b5 {[%clk 0:02:34]}  Na5 {[%clk 0:02:38]} 17. Be2 {[%clk 0:02:32]}  Ne7 {[%clk 0:02:38]} 18. Na4 {[%clk 0:02:04]}  Nf5 {[%clk 0:02:29]} 19. b6 {[%clk 0:01:53]}  a6 {[%clk 0:02:25]} 20. Rb1 {[%clk 0:01:45]}  Nc6 {[%clk 0:02:25]} 21. Rb4 {[%clk 0:01:26]}  a5 {[%clk 0:02:17]} 22. Rb2 {[%clk 0:01:17]}  Ncxd4 {[%clk 0:02:11]} 23. Bxd4 {[%clk 0:01:16]}  Nxd4 {[%clk 0:02:08]} 24. Rd2 {[%clk 0:01:16]}  Nc6 {[%clk 0:01:57]} 25. Bb5 {[%clk 0:01:14]}  Rc8 {[%clk 0:01:52]} 26. Rc2 {[%clk 0:01:10]}  Qh4 {[%clk 0:01:50]} 27. Bxc6 {[%clk 0:01:10]}  Rxc6 {[%clk 0:01:50]} 28. Rc1 {[%clk 0:01:03]}  Rfc8 {[%clk 0:01:44]} 29. Qd2 {[%clk 0:00:46]}  Qxa4 {[%clk 0:01:43]} 0-1


[Site "https://www.chess.com"]

[Event "Titled Tuesday Blitz February 07 Late 2023"]
[White "Becerra, Juan David"]
[Black "Borges Feria, Yasel"]
[WhiteFideId "4404998"]
[BlackFideId "3504921"]
[WhiteElo "2382"]
[BlackElo "2439"]
[Result "0-1"]
[Round "01"]
[TimeControl "180+2"]
[Date "2023.02.07"]
[WhiteClock "0:00:16"]
[BlackClock "0:00:31"]

1. d4 {[%clk 0:02:55]}  Nf6 {[%clk 0:02:58]} 2. c4 {[%clk 0:02:52]}  e6 {[%clk 0:02:58]} 3. Nc3 {[%clk 0:02:51]}  Bb4 {[%clk 0:02:57]} 4. a3 {[%clk 0:02:50]}  Bxc3+ {[%clk 0:02:56]} 5. bxc3 {[%clk 0:02:51]}  c5 {[%clk 0:02:56]} 6. f3 {[%clk 0:02:46]}  O-O {[%clk 0:02:50]} 7. e4 {[%clk 0:02:44]}  d6 {[%clk 0:02:45]} 8. Bd3 {[%clk 0:02:39]}  Nc6 {[%clk 0:02:42]} 9. Ne2 {[%clk 0:02:38]}  b6 {[%clk 0:02:36]} 10. O-O {[%clk 0:02:33]}  Ba6 {[%clk 0:02:34]} 11. Bg5 {[%clk 0:02:28]}  h6 {[%clk 0:02:31]} 12. Bh4 {[%clk 0:02:28]}  g5 {[%clk 0:02:24]} 13. Bf2 {[%clk 0:02:23]}  Na5 {[%clk 0:02:18]} 14. h4 {[%clk 0:01:50]}  Nh5 {[%clk 0:02:11]} 15. g4 {[%clk 0:01:45]}  Ng7 {[%clk 0:01:57]} 16. Kg2 {[%clk 0:01:25]}  Bxc4 {[%clk 0:01:52]} 17. Bxc4 {[%clk 0:01:20]}  Nxc4 {[%clk 0:01:53]} 18. Rh1 {[%clk 0:01:19]}  f5 {[%clk 0:01:41]} 19. Qd3 {[%clk 0:01:10]}  b5 {[%clk 0:01:34]} 20. exf5 {[%clk 0:00:49]}  exf5 {[%clk 0:01:31]} 21. dxc5 {[%clk 0:00:42]}  fxg4 {[%clk 0:01:26]} 22. Qd5+ {[%clk 0:00:28]}  Rf7 {[%clk 0:01:26]} 23. fxg4 {[%clk 0:00:28]}  dxc5 {[%clk 0:01:22]} 24. Qxc5 {[%clk 0:00:25]}  Qd2 {[%clk 0:01:10]} 25. Ng3 {[%clk 0:00:19]}  Raf8 {[%clk 0:01:05]} 26. Ne4 {[%clk 0:00:17]}  Qe2 {[%clk 0:01:01]} 27. Rhe1 {[%clk 0:00:17]}  Qxg4+ {[%clk 0:00:57]} 28. Kh2 {[%clk 0:00:17]}  Rf3 {[%clk 0:00:45]} 29. Bg3 {[%clk 0:00:16]}  gxh4 {[%clk 0:00:40]} 30. Qd5+ {[%clk 0:00:16]}  Kh8 {[%clk 0:00:37]} 31. Rg1 {[%clk 0:00:16]}  hxg3+ {[%clk 0:00:31]} 32. Rxg3 {[%clk 0:00:16]}  Rxg3 {[%clk 0:00:31]} 33. Nxg3 {[%clk 0:00:16]}  Rf2+ {[%clk 0:00:31]} 0-1


[Site "https://www.chess.com"]

[Event "Titled Tuesday Blitz February 07 Late 2023"]
[White "Talibov, Shiroghlan"]
[Black "Forgacs, Attila Jr."]
[WhiteFideId "13429078"]
[BlackFideId "773654"]
[WhiteElo "2359"]
[BlackElo "2264"]
[Result "1-0"]
[Round "01"]
[TimeControl "180+2"]
[Date "2023.02.07"]
[WhiteClock "0:01:38"]
[BlackClock "0:01:06"]

1. Nf3 {[%clk 0:02:59]}  Nf6 {[%clk 0:02:59]} 2. c4 {[%clk 0:02:59]}  g6 {[%clk 0:02:59]} 3. Nc3 {[%clk 0:02:55]}  Bg7 {[%clk 0:02:59]} 4. g3 {[%clk 0:02:55]}  O-O {[%clk 0:02:55]} 5. Bg2 {[%clk 0:02:56]}  d6 {[%clk 0:02:56]} 6. d4 {[%clk 0:02:54]}  Nc6 {[%clk 0:02:56]} 7. O-O {[%clk 0:02:54]}  e5 {[%clk 0:02:57]} 8. dxe5 {[%clk 0:02:50]}  dxe5 {[%clk 0:02:58]} 9. Qxd8 {[%clk 0:02:47]}  Rxd8 {[%clk 0:02:59]} 10. Bg5 {[%clk 0:02:47]}  Be6 {[%clk 0:02:54]} 11. b3 {[%clk 0:02:21]}  e4 {[%clk 0:02:26]} 12. Nd2 {[%clk 0:02:19]}  Ng4 {[%clk 0:02:25]} 13. Ndxe4 {[%clk 0:02:10]}  f5 {[%clk 0:02:08]} 14. Nc5 {[%clk 0:02:00]}  Bxc3 {[%clk 0:01:58]} 15. Nxe6 {[%clk 0:01:58]}  Rd2 {[%clk 0:01:40]} 16. Bxd2 {[%clk 0:01:51]}  Bxd2 {[%clk 0:01:13]} 17. Rad1 {[%clk 0:01:44]}  Ba5 {[%clk 0:01:10]} 18. Bxc6 {[%clk 0:01:40]}  bxc6 {[%clk 0:01:10]} 19. Rd8+ {[%clk 0:01:41]}  Rxd8 {[%clk 0:01:09]} 20. Nxd8 {[%clk 0:01:42]}  Ne5 {[%clk 0:01:07]} 21. Rd1 {[%clk 0:01:41]}  Kf8 {[%clk 0:01:06]} 22. Nb7 {[%clk 0:01:38]}  Bb6 {[%clk 0:01:06]} 23. c5 {[%clk 0:01:38]} 1-0


[Site "https://www.chess.com"]